[Event "Titled Tuesday Blitz July 4 Late 2023"]
[White "FromTexas54"]
[Black "Zavgorodniy, Sergiy"]
[BlackFideId "14110148"]
[WhiteElo "2428"]
[BlackElo "2587"]
[Result "0-1"]
[Round "3"]
[TimeControl "180+2"]
[Date "2023.07.04"]
[WhiteClock "0:00:00"]
[BlackClock "0:00:06"]
[Board "83"]

1. d4 {[%clk 0:03:00]}  d5 {[%clk 0:02:59]} 2. c4 {[%clk 0:03:01]}  dxc4 {[%clk 0:02:58]} 3. Nf3 {[%clk 0:03:01]}  Nf6 {[%clk 0:02:57]} 4. e3 {[%clk 0:03:02]}  e6 {[%clk 0:02:57]} 5. Bxc4 {[%clk 0:03:02]}  a6 {[%clk 0:02:58]} 6. O-O {[%clk 0:03:02]}  b5 {[%clk 0:02:57]} 7. Bb3 {[%clk 0:02:58]}  Bb7 {[%clk 0:02:57]} 8. Qe2 {[%clk 0:02:57]}  Nbd7 {[%clk 0:02:58]} 9. Nc3 {[%clk 0:02:56]}  c5 {[%clk 0:02:58]} 10. Rd1 {[%clk 0:02:51]}  Qc7 {[%clk 0:02:58]} 11. h3 {[%clk 0:02:45]}  Be7 {[%clk 0:02:57]} 12. e4 {[%clk 0:02:42]}  cxd4 {[%clk 0:02:55]} 13. Nxd4 {[%clk 0:02:39]}  Nc5 {[%clk 0:02:52]} 14. Bc2 {[%clk 0:02:25]}  b4 {[%clk 0:02:51]} 15. e5 {[%clk 0:02:21]}  bxc3 {[%clk 0:02:49]} 16. exf6 {[%clk 0:02:20]}  Bxf6 {[%clk 0:02:47]} 17. bxc3 {[%clk 0:02:16]}  O-O {[%clk 0:02:46]} 18. Be3 {[%clk 0:02:03]}  Rac8 {[%clk 0:02:43]} 19. Rac1 {[%clk 0:02:02]}  Rfd8 {[%clk 0:02:42]} 20. Qg4 {[%clk 0:01:56]}  g6 {[%clk 0:02:38]} 21. Bh6 {[%clk 0:01:17]}  Bg7 {[%clk 0:02:30]} 22. Bxg7 {[%clk 0:01:17]}  Kxg7 {[%clk 0:02:30]} 23. h4 {[%clk 0:01:17]}  h5 {[%clk 0:02:28]} 24. Qg5 {[%clk 0:01:14]}  Rd5 {[%clk 0:02:26]} 25. Qe3 {[%clk 0:01:10]}  Rcd8 {[%clk 0:02:24]} 26. Re1 {[%clk 0:01:08]}  Ba8 {[%clk 0:02:07]} 27. Nf3 {[%clk 0:01:08]}  Nd3 {[%clk 0:01:58]} 28. Bxd3 {[%clk 0:00:57]}  Rxd3 {[%clk 0:01:59]} 29. Qe5+ {[%clk 0:00:55]}  Qxe5 {[%clk 0:01:58]} 30. Nxe5 {[%clk 0:00:56]}  Rd2 {[%clk 0:01:57]} 31. a4 {[%clk 0:00:45]}  Ra2 {[%clk 0:01:34]} 32. Ra1 {[%clk 0:00:44]}  Rxa1 {[%clk 0:01:28]} 33. Rxa1 {[%clk 0:00:45]}  Rd5 {[%clk 0:01:28]} 34. Nf3 {[%clk 0:00:20]}  Rd3 {[%clk 0:01:26]} 35. Ng5 {[%clk 0:00:20]}  Rxc3 {[%clk 0:01:23]} 36. Rb1 {[%clk 0:00:20]}  Bd5 {[%clk 0:01:18]} 37. Rb6 {[%clk 0:00:18]}  Rc6 {[%clk 0:01:11]} 38. Rb8 {[%clk 0:00:14]}  Rc4 {[%clk 0:01:04]} 39. a5 {[%clk 0:00:13]}  Rc1+ {[%clk 0:00:58]} 40. Kh2 {[%clk 0:00:12]}  Rc5 {[%clk 0:00:59]} 41. Rd8 {[%clk 0:00:10]}  Rc7 {[%clk 0:00:48]} 42. Rd6 {[%clk 0:00:09]}  Bc4 {[%clk 0:00:43]} 43. Kg3 {[%clk 0:00:07]}  Bb5 {[%clk 0:00:43]} 44. Nxe6+ {[%clk 0:00:07]}  fxe6 {[%clk 0:00:41]} 45. Rxe6 {[%clk 0:00:07]}  Kf7 {[%clk 0:00:39]} 46. Rb6 {[%clk 0:00:06]}  Rc3+ {[%clk 0:00:38]} 47. f3 {[%clk 0:00:07]}  Ra3 {[%clk 0:00:38]} 48. Kf4 {[%clk 0:00:06]}  Rxa5 {[%clk 0:00:38]} 49. Rb7+ {[%clk 0:00:04]}  Kf6 {[%clk 0:00:38]} 50. Rb6+ {[%clk 0:00:04]}  Kg7 {[%clk 0:00:38]} 51. Rb7+ {[%clk 0:00:04]}  Kh6 {[%clk 0:00:39]} 52. g4 {[%clk 0:00:04]}  Ra4+ {[%clk 0:00:37]} 53. Kg3 {[%clk 0:00:04]}  hxg4 {[%clk 0:00:32]} 54. fxg4 {[%clk 0:00:04]}  g5 {[%clk 0:00:29]} 55. Rb6+ {[%clk 0:00:03]}  Kg7 {[%clk 0:00:27]} 56. hxg5 {[%clk 0:00:04]}  Rc4 {[%clk 0:00:25]} 57. Rb7+ {[%clk 0:00:03]}  Kg6 {[%clk 0:00:23]} 58. Kh4 {[%clk 0:00:04]}  Rc1 {[%clk 0:00:21]} 59. Rb6+ {[%clk 0:00:04]}  Kf7 {[%clk 0:00:20]} 60. g6+ {[%clk 0:00:04]}  Kg7 {[%clk 0:00:20]} 61. Kh5 {[%clk 0:00:05]}  Rc5+ {[%clk 0:00:18]} 62. g5 {[%clk 0:00:05]}  Be2+ {[%clk 0:00:17]} 63. Kh4 {[%clk 0:00:04]}  Rc7 {[%clk 0:00:17]} 64. Re6 {[%clk 0:00:03]}  Bd3 {[%clk 0:00:15]} 65. Kh5 {[%clk 0:00:02]}  Bb5 {[%clk 0:00:13]} 66. Rd6 {[%clk 0:00:02]}  Rd7 {[%clk 0:00:12]} 67. Rb6 {[%clk 0:00:02]}  Re7 {[%clk 0:00:11]} 68. Rd6 {[%clk 0:00:02]}  Ra7 {[%clk 0:00:10]} 69. Rb6 {[%clk 0:00:03]}  Be8 {[%clk 0:00:08]} 70. Kg4 {[%clk 0:00:03]}  Bxg6 {[%clk 0:00:07]} 71. Kf4 {[%clk 0:00:04]}  a5 {[%clk 0:00:07]} 72. Rb3 {[%clk 0:00:04]}  a4 {[%clk 0:00:07]} 73. Ra3 {[%clk 0:00:05]}  Bf7 {[%clk 0:00:07]} 74. Ke5 {[%clk 0:00:06]}  Bb3 {[%clk 0:00:07]} 75. Kf4 {[%clk 0:00:07]}  Ra5 {[%clk 0:00:06]} 76. Kg4 {[%clk 0:00:06]}  Kg6 {[%clk 0:00:07]} 77. Kf4 {[%clk 0:00:07]}  Rxg5 {[%clk 0:00:07]} 78. Ke3 {[%clk 0:00:08]}  Rc5 {[%clk 0:00:07]} 79. Kd4 {[%clk 0:00:09]}  Rc2 {[%clk 0:00:06]} 80. Kd3 {[%clk 0:00:09]}  Rc1 {[%clk 0:00:05]} 81. Kd2 {[%clk 0:00:09]}  Rc8 {[%clk 0:00:06]} 82. Ra1 {[%clk 0:00:08]}  Kf6 {[%clk 0:00:06]} 83. Kd3 {[%clk 0:00:08]}  Ke5 {[%clk 0:00:07]} 84. Ke3 {[%clk 0:00:08]}  Kd5 {[%clk 0:00:07]} 85. Kd3 {[%clk 0:00:08]}  Rc5 {[%clk 0:00:06]} 86. Ke3 {[%clk 0:00:07]}  Kc6 {[%clk 0:00:06]} 87. Kd3 {[%clk 0:00:07]}  Kb5 {[%clk 0:00:06]} 88. Rg1 {[%clk 0:00:07]}  Kb4 {[%clk 0:00:06]} 89. Kd2 {[%clk 0:00:07]}  Rc4 {[%clk 0:00:06]} 90. Rg7 {[%clk 0:00:06]}  Ka3 {[%clk 0:00:05]} 91. Rb7 {[%clk 0:00:06]}  Kb2 {[%clk 0:00:06]} 92. Ra7 {[%clk 0:00:05]}  Rc8 {[%clk 0:00:05]} 93. Ke3 {[%clk 0:00:04]}  a3 {[%clk 0:00:06]} 94. Kd4 {[%clk 0:00:00]}  a2 {[%clk 0:00:06]} 0-1


[Site "https://www.chess.com"]

[Event "Titled Tuesday Blitz July 4 Late 2023"]
[White "Jaskolka, Tomasz"]
[Black "Kielinkei"]
[WhiteFideId "1170791"]
[WhiteElo "2585"]
[BlackElo "2427"]
[Result "1-0"]
[Round "3"]
[TimeControl "180+2"]
[Date "2023.07.04"]
[WhiteClock "0:00:05"]
[BlackClock "0:00:03"]
[Board "84"]

1. d4 {[%clk 0:03:00]}  Nf6 {[%clk 0:02:59]} 2. Nc3 {[%clk 0:03:01]}  d5 {[%clk 0:02:58]} 3. Bf4 {[%clk 0:03:01]}  c5 {[%clk 0:02:57]} 4. e4 {[%clk 0:03:01]}  Nxe4 {[%clk 0:02:56]} 5. Nxe4 {[%clk 0:03:01]}  dxe4 {[%clk 0:02:57]} 6. dxc5 {[%clk 0:03:02]}  Qa5+ {[%clk 0:02:57]} 7. c3 {[%clk 0:03:02]}  Qxc5 {[%clk 0:02:57]} 8. Qa4+ {[%clk 0:03:03]}  Nc6 {[%clk 0:02:56]} 9. Qxe4 {[%clk 0:03:04]}  g6 {[%clk 0:02:57]} 10. Nf3 {[%clk 0:03:01]}  Bg7 {[%clk 0:02:56]} 11. Rd1 {[%clk 0:03:02]}  O-O {[%clk 0:02:54]} 12. Be3 {[%clk 0:03:00]}  Qa5 {[%clk 0:02:48]} 13. Bc4 {[%clk 0:02:56]}  Bf5 {[%clk 0:02:45]} 14. Qh4 {[%clk 0:02:56]}  Ne5 {[%clk 0:02:26]} 15. Nxe5 {[%clk 0:02:55]}  Qxe5 {[%clk 0:02:27]} 16. O-O {[%clk 0:02:50]}  Rad8 {[%clk 0:01:55]} 17. Rde1 {[%clk 0:01:44]}  Bf6 {[%clk 0:01:25]} 18. Qh6 {[%clk 0:01:40]}  Qa5 {[%clk 0:01:12]} 19. Bb3 {[%clk 0:01:28]}  Bd3 {[%clk 0:01:06]} 20. Qf4 {[%clk 0:01:14]}  Bxf1 {[%clk 0:01:06]} 21. Kxf1 {[%clk 0:01:15]}  a6 {[%clk 0:00:56]} 22. h3 {[%clk 0:01:15]}  Qe5 {[%clk 0:00:45]} 23. Qf3 {[%clk 0:01:12]}  Qc7 {[%clk 0:00:41]} 24. Bh6 {[%clk 0:01:09]}  Bg7 {[%clk 0:00:39]} 25. Bg5 {[%clk 0:01:08]}  Rd7 {[%clk 0:00:29]} 26. Bf4 {[%clk 0:01:05]}  e5 {[%clk 0:00:26]} 27. Bg5 {[%clk 0:00:59]}  Qc6 {[%clk 0:00:20]} 28. Qg3 {[%clk 0:00:56]}  Kh8 {[%clk 0:00:18]} 29. h4 {[%clk 0:00:55]}  f5 {[%clk 0:00:16]} 30. h5 {[%clk 0:00:53]}  e4 {[%clk 0:00:11]} 31. h6 {[%clk 0:00:40]}  Bf6 {[%clk 0:00:11]} 32. Bf4 {[%clk 0:00:31]}  b5 {[%clk 0:00:05]} 33. Qe3 {[%clk 0:00:27]}  a5 {[%clk 0:00:04]} 34. a3 {[%clk 0:00:23]}  a4 {[%clk 0:00:04]} 35. Ba2 {[%clk 0:00:23]}  Rc8 {[%clk 0:00:03]} 36. g3 {[%clk 0:00:19]}  Qc5 {[%clk 0:00:04]} 37. Qe2 {[%clk 0:00:17]}  Be5 {[%clk 0:00:04]} 38. Be3 {[%clk 0:00:17]}  Qc6 {[%clk 0:00:04]} 39. Kg2 {[%clk 0:00:18]}  Rcd8 {[%clk 0:00:04]} 40. c4 {[%clk 0:00:15]}  Rd3 {[%clk 0:00:02]} 41. cxb5 {[%clk 0:00:13]}  Qxb5 {[%clk 0:00:02]} 42. Rc1 {[%clk 0:00:10]}  Qb7 {[%clk 0:00:02]} 43. Qc2 {[%clk 0:00:10]}  R3d6 {[%clk 0:00:01]} 44. Qc5 {[%clk 0:00:10]}  Bf6 {[%clk 0:00:01]} 45. Qc4 {[%clk 0:00:05]}  R6d7 {[%clk 0:00:02]} 46. Qxa4 {[%clk 0:00:04]}  Qxb2 {[%clk 0:00:02]} 47. Rc2 {[%clk 0:00:03]}  Qb7 {[%clk 0:00:02]} 48. Qc4 {[%clk 0:00:04]}  Re7 {[%clk 0:00:02]} 49. Kh2 {[%clk 0:00:03]}  Qd7 {[%clk 0:00:02]} 50. Qc5 {[%clk 0:00:02]}  Rf7 {[%clk 0:00:02]} 51. Bf4 {[%clk 0:00:03]}  Re7 {[%clk 0:00:02]} 52. Be3 {[%clk 0:00:03]}  Rde8 {[%clk 0:00:02]} 53. Bf4 {[%clk 0:00:03]}  Qd8 {[%clk 0:00:03]} 54. Qc6 {[%clk 0:00:04]}  Rf7 {[%clk 0:00:03]} 55. Qc5 {[%clk 0:00:03]}  Rfe7 {[%clk 0:00:03]} 56. Qc6 {[%clk 0:00:04]}  Rf8 {[%clk 0:00:03]} 57. Bd6 {[%clk 0:00:04]}  Qe8 {[%clk 0:00:03]} 58. Qc5 {[%clk 0:00:03]}  Ref7 {[%clk 0:00:03]} 59. Bxf7 {[%clk 0:00:03]}  Rxf7 {[%clk 0:00:02]} 60. Qd5 {[%clk 0:00:03]}  Rd7 {[%clk 0:00:01]} 61. Rc6 {[%clk 0:00:03]}  Qd8 {[%clk 0:00:02]} 62. Qc5 {[%clk 0:00:03]}  Be7 {[%clk 0:00:02]} 63. Rc8 {[%clk 0:00:04]}  Bxd6 {[%clk 0:00:02]} 64. Rxd8+ {[%clk 0:00:04]}  Rxd8 {[%clk 0:00:03]} 65. Qd4+ {[%clk 0:00:05]}  Kg8 {[%clk 0:00:03]} 66. Qg7# {[%clk 0:00:05]} 1-0


[Site "https://www.chess.com"]

[Event "Titled Tuesday Blitz July 4 Late 2023"]
[White "Subelj, Jan"]
[Black "Manukian, Artak"]
[WhiteFideId "14618583"]
[BlackFideId "13301373"]
[WhiteElo "2585"]
[BlackElo "2427"]
[Result "1-0"]
[Round "3"]
[TimeControl "180+2"]
[Date "2023.07.04"]
[WhiteClock "0:01:08"]
[BlackClock "0:01:07"]
[Board "85"]

1. e4 {[%clk 0:03:00]}  c6 {[%clk 0:02:59]} 2. Nf3 {[%clk 0:02:59]}  d5 {[%clk 0:03:00]} 3. d3 {[%clk 0:03:00]}  Qc7 {[%clk 0:02:57]} 4. Nc3 {[%clk 0:02:55]}  Nf6 {[%clk 0:02:54]} 5. e5 {[%clk 0:02:54]}  Nfd7 {[%clk 0:02:54]} 6. d4 {[%clk 0:02:54]}  e6 {[%clk 0:02:53]} 7. Ne2 {[%clk 0:02:38]}  c5 {[%clk 0:02:53]} 8. c3 {[%clk 0:02:37]}  Nc6 {[%clk 0:02:52]} 9. Nf4 {[%clk 0:02:35]}  cxd4 {[%clk 0:02:47]} 10. cxd4 {[%clk 0:02:34]}  Bb4+ {[%clk 0:02:45]} 11. Bd2 {[%clk 0:02:31]}  Qa5 {[%clk 0:02:45]} 12. a3 {[%clk 0:02:26]}  Bxd2+ {[%clk 0:02:44]} 13. Qxd2 {[%clk 0:02:27]}  Qxd2+ {[%clk 0:02:44]} 14. Kxd2 {[%clk 0:02:28]}  a6 {[%clk 0:02:40]} 15. Bd3 {[%clk 0:02:24]}  b5 {[%clk 0:02:38]} 16. h4 {[%clk 0:02:23]}  Bb7 {[%clk 0:02:38]} 17. Rhc1 {[%clk 0:02:17]}  h6 {[%clk 0:02:35]} 18. h5 {[%clk 0:02:13]}  Ke7 {[%clk 0:02:32]} 19. g4 {[%clk 0:02:01]}  Rhc8 {[%clk 0:02:30]} 20. Rg1 {[%clk 0:02:00]}  Na5 {[%clk 0:02:29]} 21. Ke2 {[%clk 0:01:54]}  Nc4 {[%clk 0:02:19]} 22. Rab1 {[%clk 0:01:46]}  a5 {[%clk 0:02:18]} 23. g5 {[%clk 0:01:46]}  hxg5 {[%clk 0:02:16]} 24. Rxg5 {[%clk 0:01:47]}  Rg8 {[%clk 0:02:15]} 25. Bh7 {[%clk 0:01:39]}  Rgf8 {[%clk 0:02:10]} 26. Rxg7 {[%clk 0:01:38]}  b4 {[%clk 0:02:10]} 27. Ng6+ {[%clk 0:01:38]}  Ke8 {[%clk 0:02:07]} 28. Nxf8 {[%clk 0:01:38]}  Nxf8 {[%clk 0:02:08]} 29. Bg8 {[%clk 0:01:36]}  Ba6 {[%clk 0:02:06]} 30. Bxf7+ {[%clk 0:01:33]}  Kd8 {[%clk 0:02:06]} 31. Ke1 {[%clk 0:01:32]}  Ra7 {[%clk 0:02:04]} 32. Ng5 {[%clk 0:01:31]}  Bb5 {[%clk 0:01:44]} 33. h6 {[%clk 0:01:27]}  bxa3 {[%clk 0:01:43]} 34. Rg8 {[%clk 0:01:24]}  Ke7 {[%clk 0:01:41]} 35. bxa3 {[%clk 0:01:16]}  Nxa3 {[%clk 0:01:40]} 36. Rc1 {[%clk 0:01:17]}  Nc4 {[%clk 0:01:35]} 37. Bxe6 {[%clk 0:01:09]}  Nxe6 {[%clk 0:01:31]} 38. h7 {[%clk 0:01:09]}  Nxg5 {[%clk 0:01:07]} 39. Rxg5 {[%clk 0:01:08]} 1-0


[Site "https://www.chess.com"]

[Event "Titled Tuesday Blitz July 4 Late 2023"]
[White "Czerw, Dawid"]
[Black "Mickiewicz, Piotr"]
[WhiteFideId "1145746"]
[BlackFideId "1114891"]
[WhiteElo "2578"]
[BlackElo "2424"]
[Result "1/2-1/2"]
[Round "3"]
[TimeControl "180+2"]
[Date "2023.07.04"]
[WhiteClock "0:00:11"]
[BlackClock "0:00:22"]
[Board "87"]

1. e4 {[%clk 0:03:00]}  e5 {[%clk 0:02:57]} 2. Nf3 {[%clk 0:03:01]}  Nc6 {[%clk 0:02:57]} 3. Bb5 {[%clk 0:03:01]}  a6 {[%clk 0:02:55]} 4. Ba4 {[%clk 0:03:01]}  Nf6 {[%clk 0:02:55]} 5. d4 {[%clk 0:03:02]}  exd4 {[%clk 0:02:44]} 6. O-O {[%clk 0:03:01]}  Be7 {[%clk 0:02:35]} 7. e5 {[%clk 0:03:00]}  Ne4 {[%clk 0:02:35]} 8. Nxd4 {[%clk 0:03:00]}  Nc5 {[%clk 0:02:33]} 9. Nf5 {[%clk 0:02:56]}  O-O {[%clk 0:02:20]} 10. Qg4 {[%clk 0:02:48]}  g6 {[%clk 0:02:10]} 11. Nxe7+ {[%clk 0:02:46]}  Qxe7 {[%clk 0:02:08]} 12. Bxc6 {[%clk 0:02:46]}  dxc6 {[%clk 0:02:07]} 13. Qg3 {[%clk 0:02:46]}  f5 {[%clk 0:01:37]} 14. exf6 {[%clk 0:02:34]}  Qxf6 {[%clk 0:01:34]} 15. Qxc7 {[%clk 0:02:32]}  Rf7 {[%clk 0:01:20]} 16. Qb6 {[%clk 0:02:28]}  Ne4 {[%clk 0:01:14]} 17. Nd2 {[%clk 0:02:23]}  Bf5 {[%clk 0:00:59]} 18. Nxe4 {[%clk 0:02:11]}  Bxe4 {[%clk 0:01:00]} 19. Bd2 {[%clk 0:02:05]}  Bxg2 {[%clk 0:00:54]} 20. Rfe1 {[%clk 0:01:16]}  Bf3 {[%clk 0:00:44]} 21. Qe3 {[%clk 0:00:55]}  Rd8 {[%clk 0:00:17]} 22. Bc3 {[%clk 0:00:44]}  Qh4 {[%clk 0:00:16]} 23. Qe5 {[%clk 0:00:28]}  Qg4+ {[%clk 0:00:16]} 24. Qg3 {[%clk 0:00:27]}  Qxg3+ {[%clk 0:00:14]} 25. fxg3 {[%clk 0:00:24]}  h5 {[%clk 0:00:13]} 26. Re3 {[%clk 0:00:20]}  Bd5 {[%clk 0:00:14]} 27. Rae1 {[%clk 0:00:19]}  Kh7 {[%clk 0:00:14]} 28. Re7 {[%clk 0:00:16]}  Rd7 {[%clk 0:00:13]} 29. Re8 {[%clk 0:00:17]}  g5 {[%clk 0:00:14]} 30. Rh8+ {[%clk 0:00:14]}  Kg6 {[%clk 0:00:14]} 31. Rg8+ {[%clk 0:00:14]}  Kf5 {[%clk 0:00:13]} 32. h3 {[%clk 0:00:10]}  Rde7 {[%clk 0:00:12]} 33. Rf1+ {[%clk 0:00:07]}  Ke4 {[%clk 0:00:12]} 34. Rxg5 {[%clk 0:00:05]}  Rxf1+ {[%clk 0:00:11]} 35. Kxf1 {[%clk 0:00:06]}  Rf7+ {[%clk 0:00:10]} 36. Ke1 {[%clk 0:00:04]}  Rf5 {[%clk 0:00:11]} 37. Rxf5 {[%clk 0:00:03]}  Kxf5 {[%clk 0:00:12]} 38. Kf2 {[%clk 0:00:03]}  Be4 {[%clk 0:00:11]} 39. b4 {[%clk 0:00:03]}  Bxc2 {[%clk 0:00:12]} 40. a3 {[%clk 0:00:03]}  Bd3 {[%clk 0:00:12]} 41. Ke3 {[%clk 0:00:03]}  Bc2 {[%clk 0:00:13]} 42. Bd4 {[%clk 0:00:03]}  Bb3 {[%clk 0:00:12]} 43. Kf3 {[%clk 0:00:03]}  Be6 {[%clk 0:00:12]} 44. g4+ {[%clk 0:00:03]}  hxg4+ {[%clk 0:00:13]} 45. hxg4+ {[%clk 0:00:04]}  Kg6 {[%clk 0:00:13]} 46. Kf4 {[%clk 0:00:04]}  Bb3 {[%clk 0:00:12]} 47. g5 {[%clk 0:00:04]}  Bc2 {[%clk 0:00:12]} 48. Be3 {[%clk 0:00:03]}  Bd3 {[%clk 0:00:12]} 49. Ke5 {[%clk 0:00:04]}  a5 {[%clk 0:00:12]} 50. bxa5 {[%clk 0:00:04]}  Ba6 {[%clk 0:00:12]} 51. Kd6 {[%clk 0:00:04]}  Bb5 {[%clk 0:00:12]} 52. Kc5 {[%clk 0:00:04]}  Ba6 {[%clk 0:00:13]} 53. Kb6 {[%clk 0:00:03]}  Kf7 {[%clk 0:00:14]} 54. Kc7 {[%clk 0:00:03]}  Kg6 {[%clk 0:00:14]} 55. Kd6 {[%clk 0:00:03]}  Kf7 {[%clk 0:00:15]} 56. Ke5 {[%clk 0:00:03]}  Kg6 {[%clk 0:00:16]} 57. Ke6 {[%clk 0:00:04]}  Bb5 {[%clk 0:00:16]} 58. Kd7 {[%clk 0:00:04]}  Ba6 {[%clk 0:00:17]} 59. Ke6 {[%clk 0:00:03]}  Bc4+ {[%clk 0:00:15]} 60. Ke7 {[%clk 0:00:04]}  Ba6 {[%clk 0:00:15]} 61. Kd8 {[%clk 0:00:05]}  c5 {[%clk 0:00:16]} 62. Ke7 {[%clk 0:00:04]}  c4 {[%clk 0:00:16]} 63. Kd6 {[%clk 0:00:04]}  c3 {[%clk 0:00:16]} 64. Kc5 {[%clk 0:00:04]}  c2 {[%clk 0:00:17]} 65. Kd4 {[%clk 0:00:04]}  c1=Q {[%clk 0:00:17]} 66. Bxc1 {[%clk 0:00:04]}  Kf5 {[%clk 0:00:17]} 67. Kc5 {[%clk 0:00:05]}  Kg6 {[%clk 0:00:18]} 68. Kd6 {[%clk 0:00:05]}  Kf7 {[%clk 0:00:17]} 69. Ke5 {[%clk 0:00:05]}  Kg6 {[%clk 0:00:18]} 70. Kd4 {[%clk 0:00:06]}  Bb5 {[%clk 0:00:19]} 71. Kc5 {[%clk 0:00:06]}  Ba6 {[%clk 0:00:19]} 72. Kd6 {[%clk 0:00:07]}  Bb5 {[%clk 0:00:20]} 73. Kc7 {[%clk 0:00:08]}  Ba6 {[%clk 0:00:20]} 74. Kb8 {[%clk 0:00:09]}  Kf5 {[%clk 0:00:20]} 75. Ka7 {[%clk 0:00:09]}  Kg6 {[%clk 0:00:21]} 76. Kb6 {[%clk 0:00:10]}  Kf5 {[%clk 0:00:21]} 77. Kc5 {[%clk 0:00:11]}  Kg6 {[%clk 0:00:22]} 1/2-1/2


[Site "https://www.chess.com"]

[Event "Titled Tuesday Blitz July 4 Late 2023"]
[White "Petesch, Gabriel"]
[Black "Castella Garcia, Fausto"]
[WhiteFideId "2032465"]
[BlackFideId "3501922"]
[WhiteElo "2571"]
[BlackElo "2421"]
[Result "1-0"]
[Round "3"]
[TimeControl "180+2"]
[Date "2023.07.04"]
[WhiteClock "0:00:21"]
[BlackClock "0:00:32"]
[Board "90"]

1. Nf3 {[%clk 0:02:56]}  c5 {[%clk 0:02:59]} 2. b3 {[%clk 0:02:54]}  Nf6 {[%clk 0:02:55]} 3. Bb2 {[%clk 0:02:52]}  g6 {[%clk 0:02:56]} 4. e3 {[%clk 0:02:50]}  Bg7 {[%clk 0:02:55]} 5. Be2 {[%clk 0:02:49]}  O-O {[%clk 0:02:56]} 6. O-O {[%clk 0:02:47]}  d6 {[%clk 0:02:54]} 7. c4 {[%clk 0:02:46]}  Nc6 {[%clk 0:02:52]} 8. d4 {[%clk 0:02:46]}  Ne4 {[%clk 0:02:51]} 9. Nbd2 {[%clk 0:02:46]}  Bf5 {[%clk 0:02:49]} 10. Rc1 {[%clk 0:02:43]}  Qa5 {[%clk 0:02:37]} 11. a3 {[%clk 0:02:40]}  Nxd2 {[%clk 0:02:32]} 12. Nxd2 {[%clk 0:02:35]}  cxd4 {[%clk 0:02:30]} 13. exd4 {[%clk 0:02:14]}  Nxd4 {[%clk 0:02:27]} 14. Bxd4 {[%clk 0:02:06]}  Bxd4 {[%clk 0:02:24]} 15. c5 {[%clk 0:01:10]}  dxc5 {[%clk 0:02:14]} 16. b4 {[%clk 0:01:07]}  Qc7 {[%clk 0:01:53]} 17. Nb3 {[%clk 0:01:01]}  Rfd8 {[%clk 0:01:48]} 18. Nxd4 {[%clk 0:00:59]}  Qe5 {[%clk 0:01:34]} 19. Nf3 {[%clk 0:00:57]}  Rxd1 {[%clk 0:01:26]} 20. Nxe5 {[%clk 0:00:57]}  Rd5 {[%clk 0:01:14]} 21. f4 {[%clk 0:00:53]}  cxb4 {[%clk 0:01:13]} 22. Bc4 {[%clk 0:00:49]}  Rd2 {[%clk 0:01:11]} 23. Bxf7+ {[%clk 0:00:42]}  Kg7 {[%clk 0:01:11]} 24. axb4 {[%clk 0:00:41]}  a5 {[%clk 0:01:06]} 25. Rc7 {[%clk 0:00:35]}  axb4 {[%clk 0:00:55]} 26. Rxe7 {[%clk 0:00:31]}  Kf6 {[%clk 0:00:55]} 27. Rxb7 {[%clk 0:00:23]}  Be4 {[%clk 0:00:55]} 28. Ng4+ {[%clk 0:00:23]}  Kg7 {[%clk 0:00:32]} 29. Bd5+ {[%clk 0:00:21]} 1-0


[Site "https://www.chess.com"]

[Event "Titled Tuesday Blitz July 4 Late 2023"]
[White "Sebag, Marie"]
[Black "Seresin, Francesco"]
[WhiteFideId "617822"]
[BlackFideId "886335"]
[WhiteElo "2567"]
[BlackElo "2418"]
[Result "1-0"]
[Round "3"]
[TimeControl "180+2"]
[Date "2023.07.04"]
[WhiteClock "0:02:21"]
[BlackClock "0:01:53"]
[Board "91"]

1. d4 {[%clk 0:03:00]}  d5 {[%clk 0:02:56]} 2. c4 {[%clk 0:03:00]}  e6 {[%clk 0:02:57]} 3. Nc3 {[%clk 0:02:59]}  Nf6 {[%clk 0:02:58]} 4. cxd5 {[%clk 0:02:59]}  exd5 {[%clk 0:02:58]} 5. Bg5 {[%clk 0:02:59]}  c6 {[%clk 0:02:58]} 6. Qc2 {[%clk 0:02:58]}  Be7 {[%clk 0:02:59]} 7. e3 {[%clk 0:02:57]}  h6 {[%clk 0:02:59]} 8. Bh4 {[%clk 0:02:56]}  O-O {[%clk 0:03:00]} 9. Bd3 {[%clk 0:02:56]}  Re8 {[%clk 0:03:00]} 10. Nge2 {[%clk 0:02:54]}  Na6 {[%clk 0:03:00]} 11. a3 {[%clk 0:02:52]}  Nc7 {[%clk 0:02:59]} 12. O-O {[%clk 0:02:52]}  a5 {[%clk 0:02:59]} 13. Rae1 {[%clk 0:02:50]}  Ne6 {[%clk 0:02:40]} 14. f3 {[%clk 0:02:48]}  c5 {[%clk 0:02:39]} 15. dxc5 {[%clk 0:02:42]}  Bxc5 {[%clk 0:02:36]} 16. Bxf6 {[%clk 0:02:33]}  Bxe3+ {[%clk 0:02:18]} 17. Kh1 {[%clk 0:02:32]}  Qxf6 {[%clk 0:02:17]} 18. Nxd5 {[%clk 0:02:31]}  Qe5 {[%clk 0:02:13]} 19. Nec3 {[%clk 0:02:21]}  Nd4 {[%clk 0:01:53]} 20. Qd1 {[%clk 0:02:21]} 1-0


[Site "https://www.chess.com"]